bitfinex/quotes_ETHUSD_20260302
["timestamp","ask_amount","ask_price","bid_price","bid_amount"]
[1772423260444,0.488682,1975.3,1974.4,0.42172127]
[1772423262638,0.488682,1975.2,1974.6,0.42172127]
[1772423263031,0.488682,1975.1,1974.5,1.26614332]
[1772423263640,0.488682,1975.1,1974.5,1.68786459]
[1772423264423,0.488682,1975.1,1974.6,0.42172127]
[1772423264939,1.75445249,1975.1,1974.6,1.68775554]
[1772423265239,0.488682,1975.1,1974.6,1.68775554]
[1772423265742,0.488682,1975.0,1974.6,1.26603427]
[1772423265913,0.488682,1975.0,1974.5,1.26611699]
[1772423266337,0.488682,1975.0,1974.5,1.68783826]
[1772423267444,0.47187095,1974.9,1974.5,1.26611699]
[1772423268550,0.47387095,1974.9,1974.5,1.26611699]
[1772423270737,0.47387095,1974.9,1974.4,0.42172127]
[1772423270937,1.73977809,1974.9,1974.4,1.68788358]
[1772423271144,0.47187095,1974.8,1974.4,1.68788358]
[1772423273749,0.88239997,1974.7,1974.3,5.12622711]
[1772423274054,0.47187095,1974.6,1974.3,5.12622711]
[1772423275854,0.41052902,1974.7,1974.3,5.54794838]
[1772423276055,0.002,1974.9,1974.4,0.42172127]
[1772423277133,0.47387095,1974.9,1974.4,4.28172127]
[1772423278629,0.47387095,1974.9,1974.5,1.26614332]
[1772423280335,0.47387095,1974.9,1974.5,1.68786459]
[1772423280558,0.47387095,1974.9,1974.5,1.68886459]
[1772423281678,0.002,1975.0,1974.7,0.42172127]
[1772423282860,0.002,1975.0,1974.8,1.26595098]
[1772423283047,0.002,1975.0,1974.8,1.68767225]
[1772423283364,0.47187095,1975.7,1975.0,0.41972127]
[1772423284469,0.002,1975.6,1975.0,0.41972127]
[1772423284836,0.002,1975.6,1975.1,1.68547996]
[1772423285062,0.47387095,1975.5,1975.1,1.26575869]
[1772423285759,0.002,1975.4,1974.8,0.41972127]
[1772423285928,0.47387095,1975.4,1974.8,0.41972127]
[1772423287031,0.47187095,1975.3,1974.9,1.26588688]
[1772423288761,0.47187095,1975.3,1974.8,1.68564807]
[1772423288961,0.47387095,1975.2,1974.8,0.41972127]
[1772423289162,0.47387095,1975.2,1974.8,1.68566063]
[1772423290263,0.002,1975.1,1974.8,1.26593936]
[1772423292167,0.002,1975.1,1974.8,5.12693936]
[1772423292355,0.004,1975.1,1974.8,5.54666063]
[1772423293454,0.002,1975.0,1974.8,0.001]
[1772423293764,0.46024358,1975.0,1974.8,0.001]
[1772423294334,0.002,1975.0,1974.8,0.42072127]
[1772423296250,0.002,1975.1,1974.8,1.68661892]
[1772423296445,0.46024358,1975.1,1974.8,1.26689765]
[1772423296669,0.46024358,1975.0,1974.8,1.26689765]
[1772423297772,0.002,1975.0,1974.8,1.26689765]
[1772423299271,0.002,1975.0,1974.8,0.001]
[1772423301168,0.002,1975.1,1974.9,0.41972127]
[1772423301353,0.004,1975.1,1974.9,0.41972127]
[1772423304547,0.002,1975.4,1975.0,0.41972127]
[1772423304548,0.48670409,1975.4,1975.0,0.41972127]
[1772423305650,0.002,1975.4,1975.0,0.41972127]
[1772423305850,0.002,1975.4,1975.2,0.41972127]
[1772423307280,0.002,1975.4,1975.2,1.68536371]
[1772423309580,0.002,1975.4,1975.3,0.41972127]
[1772423310080,0.002,1975.4,1975.2,5.54536371]
[1772423311853,0.002,1975.4,1975.3,0.41972127]
[1772423313193,0.48670409,1975.4,1975.1,1.26575438]
[1772423313483,0.48670409,1975.4,1975.1,3.28575438]
[1772423313678,0.48670409,1975.4,1975.0,1.26578072]
[1772423313884,0.48470409,1975.3,1975.0,1.26578072]
[1772423315263,0.48470409,1975.3,1974.9,7.50518256]
[1772423315264,0.002,1975.4,1975.2,1.26569461]
[1772423315881,0.48670409,1975.4,1975.2,1.26569461]
[1772423316584,0.48670409,1975.4,1975.3,0.001]
[1772423318882,0.48670409,1975.4,1975.2,0.001]
[1772423324089,0.48670409,1975.4,1975.2,1.26669461]
[1772423325474,0.002,1975.9,1975.4,0.49150319]
[1772423325787,0.48670409,1975.9,1975.4,0.49150319]
[1772423326294,0.48470409,1975.8,1975.5,1.2655024]
[1772423326792,0.48470409,1975.8,1975.5,1.75700559]
[1772423328395,0.48826913,1975.9,1975.5,1.75700559]
[1772423330598,0.002,1975.7,1975.5,1.75700299]
[1772423331471,0.002,1975.7,1975.5,0.49150319]
[1772423332666,0.002,1975.7,1975.5,1.75700366]
[1772423334371,0.002,1975.7,1975.6,0.4500248]
[1772423335599,0.002,1975.7,1975.5,1.71552527]
[1772423336695,0.002,1975.7,1975.6,0.4500248]
[1772423337686,0.48826913,1975.7,1975.4,1.71556374]
[1772423338072,0.48826913,1975.8,1975.4,1.26553894]
[1772423338276,0.48826913,1975.8,1975.5,0.4500248]
[1772423338800,1.26731522,1975.8,1975.4,1.26553894]
[1772423338999,0.48626913,1975.7,1975.3,5.57660655]
[1772423339197,0.48626913,1975.5,1975.3,3.861]
[1772423339503,0.48626913,1975.5,1975.3,0.001]
[1772423339700,0.89836583,1975.8,1975.4,0.4500248]
[1772423339900,0.002,1975.9,1975.5,0.4500248]
[1772423340202,0.48826913,1975.9,1975.5,0.4500248]
[1772423341503,0.48826913,1975.9,1975.5,1.26546895]
[1772423341805,0.48826913,1975.9,1975.6,0.4500248]
[1772423342207,0.002,1975.9,1975.6,0.4500248]
[1772423343383,0.002,1975.9,1975.7,1.71539909]
[1772423343699,0.002,1975.8,1975.7,1.71539909]
[1772423344076,0.002,1975.8,1975.7,1.26537429]
[1772423346505,0.00200001,1976.0,1975.8,0.4500248]
[1772423347084,1e-08,1976.2,1975.8,0.4500248]
[1772423347288,0.48626914,1976.2,1975.8,0.4500248]
[1772423347689,0.48626914,1976.2,1975.9,1.26524621]
[1772423351404,1e-08,1976.2,1976.0,0.4500248]
[1772423351601,0.48626913,1976.5,1976.1,0.4500248]
[1772423351803,0.4100967,1976.4,1976.0,2.037]
[1772423352006,0.4100967,1976.4,1975.6,5.897]
[1772423352007,0.48626913,1975.9,1975.6,5.897]
[1772423352187,0.48626913,1975.9,1975.6,2.037]
[1772423352512,0.48626913,1975.9,1975.5,0.4510248]
[1772423354414,0.45437449,1975.8,1975.5,0.4510248]
[1772423354617,0.45437449,1975.7,1975.5,0.001]
[1772423355008,0.45437449,1975.5,1975.3,0.001]
[1772423355190,0.45437449,1975.3,1975.0,0.00253886]
[1772423355515,0.86447119,1975.4,1975.0,1.76163187]
[1772423355705,0.86447119,1975.4,1975.1,0.49327553]
[1772423356919,2.13004299,1975.4,1975.3,0.001]
[1772423360424,0.46058511,1975.3,1974.9,0.001]
[1772423360608,0.46058511,1974.9,1974.6,0.001]
[1772423360809,0.46058511,1974.9,1974.7,0.00453886]
[1772423362397,0.87068181,1974.8,1974.6,0.001]
[1772423366144,0.46058511,1974.8,1974.6,0.001]
[1772423366639,1.72628662,1975.2,1974.7,0.49932912]
[1772423366835,0.46058511,1975.1,1974.7,0.49932912]
[1772423367010,0.87114045,1975.1,1974.7,0.49932912]
[1772423367212,0.46058511,1975.0,1974.6,0.001]
[1772423367407,0.46058511,1974.8,1974.6,0.001]
[1772423369347,0.46058511,1974.8,1974.7,0.001]
[1772423371042,0.46058511,1974.7,1974.5,0.001]
[1772423373541,0.46058511,1974.8,1974.5,0.001]
[1772423373750,0.46058511,1974.6,1974.5,0.001]
[1772423374746,0.46058511,1974.6,1974.2,1.76665888]
[1772423375161,0.46058511,1974.6,1974.2,0.50032912]
[1772423375771,0.46058511,1974.5,1974.2,0.001]
[1772423376246,0.46058511,1974.4,1974.2,0.001]
[1772423377852,0.46058511,1974.2,1974.0,0.00253886]
[1772423379049,0.87114045,1974.1,1974.0,0.00253886]
[1772423379253,0.46058511,1974.1,1974.0,0.00253886]
[1772423379937,0.41055534,1974.5,1974.0,0.50186798]
[1772423380137,2.13728582,1974.5,1974.0,0.50186798]
[1772423380332,1.67670071,1974.5,1974.0,0.50186798]
[1772423380661,0.46058511,1974.4,1974.0,0.50186798]
[1772423381037,0.46058511,1974.4,1974.0,0.00253886]
[1772423381362,0.46058511,1974.4,1974.1,0.001]
[1772423382050,0.46058511,1974.3,1974.1,0.001]
[1772423382245,0.87114045,1974.5,1974.1,0.50032912]
[1772423384642,0.46058511,1974.4,1974.1,0.001]
[1772423385655,0.46058511,1974.4,1974.1,0.50032912]
[1772423386866,1.72679612,1974.4,1974.1,0.001]
[1772423387166,1.72679612,1974.4,1974.1,0.50032912]
[1772423387334,0.46058511,1974.4,1974.1,0.50032912]
[1772423389666,0.46058511,1974.4,1974.1,0.001]
[1772423389840,0.46058511,1974.4,1974.1,1.26738017]
[1772423390239,0.46058511,1974.4,1974.1,1.7307066]
[1772423390439,0.002,1974.6,1974.2,0.46332643]
[1772423391074,0.002,1974.7,1974.4,0.46332643]
[1772423391244,0.002,1974.7,1974.2,3.86]
[1772423391436,0.002,1974.7,1974.3,0.46332643]
[1772423392056,0.002,1974.7,1974.4,1.26620745]
[1772423392261,0.002,1974.7,1974.4,1.72953388]
[1772423392761,0.002,1974.7,1974.5,0.46332643]
[1772423393548,0.002,1974.7,1974.4,1.26620745]
[1772423393748,0.002,1974.7,1974.4,1.72953388]
[1772423394270,0.002,1974.5,1974.4,1.72953388]
[1772423396067,0.002,1974.6,1974.5,0.46332643]
[1772423396465,0.002,1974.6,1974.5,1.72946975]
[1772423398675,0.002,1974.7,1974.6,0.46332643]
[1772423399170,0.48851124,1975.3,1974.7,0.46332643]
[1772423399566,0.002,1975.3,1974.7,0.46332643]
[1772423399742,0.002,1975.3,1974.9,0.46332643]
[1772423400370,0.002,1975.3,1975.2,1.72902104]
[1772423401270,0.002,1975.4,1975.3,0.46332643]
[1772423402755,0.002,1975.4,1975.3,1.72895696]
[1772423402956,0.002,1975.4,1975.3,0.46332643]
[1772423403699,0.002,1975.4,1975.3,1.72895696]
[1772423404173,0.002,1975.4,1975.3,0.46332643]
[1772423404544,0.002,1975.6,1975.4,0.46332643]
[1772423404749,0.002,1975.9,1975.6,0.46332643]
[1772423406753,0.002,1975.7,1975.6,1.72876477]
[1772423407658,0.48851124,1975.8,1975.4,1.72985068]
[1772423408951,0.48651124,1975.7,1975.4,0.001]
[1772423409598,0.002,1975.8,1975.4,1.72988756]
[1772423410059,0.48851124,1975.8,1975.4,1.72988756]
[1772423410851,0.48851124,1975.8,1975.4,1.26656113]
[1772423411057,0.48851124,1975.8,1975.4,1.72988756]
[1772423411484,0.48851124,1975.8,1975.4,1.26656113]
[1772423411682,0.48651124,1975.7,1975.4,0.001]
[1772423412058,0.48651124,1975.7,1975.4,1.26656508]
[1772423412659,0.48651124,1975.7,1975.4,0.001]
[1772423412859,0.48651124,1975.6,1975.4,0.001]
[1772423413081,0.48851124,1975.8,1975.4,0.001]
[1772423413320,0.48651124,1975.7,1975.4,0.001]
[1772423413588,0.48651124,1975.7,1975.1,5.52721362]
[1772423413589,0.48651124,1975.7,1975.1,0.001]
[1772423414392,0.48651124,1975.7,1975.1,1.26675398]
[1772423414569,0.48651124,1975.7,1975.1,0.001]
[1772423415388,0.49129963,1975.5,1975.1,0.001]
[1772423418387,0.47308242,1975.4,1975.1,0.001]
[1772423419401,0.47308242,1975.4,1975.2,0.001]
[1772423420580,0.002,1975.7,1975.2,0.001]
[1772423420581,1.26742038,1975.7,1975.2,0.001]
[1772423420782,1.26742038,1975.7,1975.2,0.48856505]
[1772423420997,0.002,1975.7,1975.2,0.48856505]
[1772423423015,0.002,1975.7,1975.3,1.75319558]
[1772423423904,0.47508242,1975.7,1975.2,0.001]
[1772423424478,3.34477512,1975.7,1975.2,0.001]
[1772423424712,0.47308242,1975.6,1975.2,0.001]
[1772423425212,1.73858482,1975.5,1975.2,0.001]
[1772423425384,0.47308242,1975.4,1975.2,0.001]
[1772423426410,0.47508242,1975.7,1975.2,0.001]
[1772423426613,0.47508242,1975.7,1975.2,0.48856505]
[1772423426614,0.002,1975.7,1975.2,0.48856505]
[1772423427310,0.002,1975.7,1975.4,0.48756505]
[1772423429312,0.002,1975.7,1975.5,1.2655024]
[1772423430499,0.002,1975.7,1975.5,0.48756505]
[1772423431506,0.002,1975.6,1975.5,0.48756505]
[1772423433908,0.002,1975.6,1975.5,1.75306745]
[1772423434111,0.002,1975.7,1975.6,0.48756505]
[1772423434918,0.002,1975.9,1975.7,0.48756505]
[1772423435094,0.002,1976.1,1975.7,0.48756505]
[1772423435294,0.004,1976.1,1975.8,0.48756505]
[1772423435896,0.004,1976.1,1975.9,0.48756505]
[1772423436197,0.002,1976.0,1975.8,1.26530352]
[1772423436399,0.002,1976.0,1975.8,1.75286857]
[1772423436599,0.002,1976.1,1975.9,0.48756505]
[1772423436904,0.004,1976.1,1975.9,0.48756505]
[1772423437111,0.002,1976.1,1975.9,0.48756505]
[1772423437495,0.004,1976.1,1975.7,7.66589472]
[1772423438288,0.44974826,1976.2,1975.7,7.66589472]
[1772423440013,1.2649269,1976.4,1975.8,0.48756505]
[1772423440318,0.47308242,1976.4,1975.9,1.75281126]
[1772423440517,1.26490589,1976.5,1976.0,0.48756505]
[1772423440518,0.47308242,1976.5,1976.0,0.48756505]
[1772423441521,0.47308242,1976.5,1975.9,3.86]
[1772423442419,0.47308242,1976.3,1975.9,3.86]
[1772423443636,0.47508242,1976.1,1975.9,3.86]
[1772423443801,0.47508242,1976.1,1975.7,1.2653298]
[1772423445521,0.47308242,1976.0,1975.6,7.66995363]
[1772423445716,0.47308242,1976.0,1975.6,5.917]
[1772423445910,0.47308242,1976.0,1975.6,1.26642202]
[1772423446333,0.47308242,1976.0,1975.6,0.001]
[1772423446532,0.47308242,1975.9,1975.6,0.001]
[1772423447919,0.002,1976.1,1975.8,0.45533281]
[1772423448722,0.002,1976.1,1975.9,1.72057902]
[1772423449532,0.002,1976.1,1975.9,1.26524621]
[1772423450234,0.002,1976.1,1975.8,5.06098486]
[1772423450235,0.002,1976.1,1975.8,1.72059632]
[1772423451019,0.002,1976.1,1975.8,1.26526351]
[1772423451613,0.45863503,1976.1,1975.7,5.1253739]
[1772423451919,0.45863503,1976.1,1975.5,0.001]
[1772423452350,0.45863503,1976.1,1975.3,0.001]
[1772423452351,2.8696927,1975.9,1975.3,0.001]
[1772423452550,0.45663503,1975.8,1975.3,1.26662764]
[1772423452726,0.45663503,1975.6,1975.3,0.001]
[1772423456158,0.45663503,1975.6,1975.4,0.001]
[1772423456340,0.45663503,1975.5,1975.4,0.001]
[1772423458767,1.26523021,1976.0,1975.4,0.45633281]
[1772423459067,0.45663503,1975.9,1975.4,0.45633281]
[1772423459464,0.45663503,1975.9,1975.4,0.001]
[1772423459961,1.26716352,1976.1,1975.5,0.45533281]
[1772423460370,0.45863503,1976.1,1975.5,1.26545161]
[1772423460906,0.002,1976.1,1975.6,0.45533281]
[1772423462451,0.002,1976.1,1975.8,0.45533281]
[1772423464366,0.002,1976.2,1975.8,0.45533281]
[1772423464571,0.45863503,1976.2,1975.8,1.72059504]
[1772423465379,0.45863503,1976.2,1975.6,1.72073062]
[1772423465679,0.45863503,1976.2,1975.6,1.26539781]
[1772423466404,0.45863503,1976.2,1975.4,0.001]
[1772423466405,1.72188124,1975.9,1975.4,0.001]
[1772423466591,0.45663503,1975.8,1975.4,0.001]
[1772423467864,0.45663503,1975.8,1975.7,0.001]
[1772423468775,1.2652973,1975.9,1975.7,0.001]
[1772423469187,1.72193233,1975.9,1975.7,0.001]
[1772423470295,0.002,1976.1,1975.7,0.45633281]
[1772423471190,0.002,1976.1,1975.7,1.72166727]
[1772423472567,0.002,1976.1,1975.8,0.45533281]
[1772423474598,0.002,1976.1,1975.8,1.72064168]
[1772423475005,0.002,1976.1,1975.8,0.45533281]
[1772423476196,0.002,1976.1,1975.8,1.72064119]
[1772423476531,0.002,1976.1,1975.8,0.45533281]
[1772423478712,0.002,1976.1,1975.8,1.72064209]
[1772423479322,0.002,1976.1,1975.8,0.45533281]
[1772423480012,0.002,1976.0,1975.8,0.45533281]
[1772423481626,0.47191678,1975.9,1975.7,0.001]
[1772423481793,0.47391678,1976.0,1975.7,0.001]
[1772423483101,0.47191678,1975.9,1975.7,0.001]
[1772423485221,1.73722703,1975.8,1975.7,0.001]
[1772423486228,0.47091678,1975.7,1975.5,0.001]
[1772423486525,0.47091678,1975.7,1975.4,0.001]
[1772423486526,0.47091678,1975.7,1975.3,0.001]
[1772423490424,1.73635512,1975.6,1975.3,0.001]
[1772423490745,0.47091678,1975.5,1975.1,0.001]
[1772423491734,1.73635512,1975.6,1975.1,0.48576026]
[1772423491933,0.47091678,1975.5,1975.1,0.001]
[1772423492117,0.47091678,1975.5,1975.3,0.001]
[1772423492919,4.30448324,1975.4,1975.3,0.001]
[1772423493741,0.46991678,1975.3,1975.1,0.001]
[1772423493915,0.46991678,1975.3,1974.9,0.001]
[1772423495137,1.73561139,1975.2,1974.9,0.001]
[1772423497242,5.06226587,1975.7,1974.9,0.48576026]
[1772423497243,2.572,1975.6,1974.9,0.48576026]
[1772423497445,2.164,1975.7,1974.9,0.48576026]
[1772423498137,4.30717283,1975.9,1974.9,0.48576026]
[1772423499534,4.30717283,1975.9,1975.0,1.26582278]
[1772423499852,4.30717283,1975.9,1975.1,0.48476026]
[1772423500152,0.46991678,1975.7,1975.1,0.48476026]
[1772423502162,0.46991678,1975.7,1975.2,0.48476026]
[1772423502163,1.26543834,1975.6,1975.2,0.48476026]
[1772423505064,0.46991678,1975.5,1975.1,0.001]
[1772423505465,0.46991678,1975.5,1975.1,0.48576026]
[1772423507165,1.73545767,1975.5,1975.1,0.48576026]
[1772423507471,8.08291723,1975.7,1975.2,0.49730671]
[1772423507840,0.45329107,1975.6,1975.2,0.49730671]
[1772423508034,1.26736127,1975.8,1975.2,0.49730671]
[1772423509053,1.72065234,1975.8,1975.3,1.76293724]
[1772423509249,1.72065234,1975.8,1975.3,1.26563053]
[1772423509450,1.72065234,1975.8,1975.4,0.49730671]
[1772423511374,1.26736127,1975.8,1975.4,0.49730671]
[1772423512381,1.72065234,1975.8,1975.4,0.49730671]
[1772423512785,0.002,1975.8,1975.5,0.49730671]
[1772423513193,0.002,1975.8,1975.7,0.49730671]
[1772423515057,0.002,1975.8,1975.5,1.26545106]
[1772423515058,0.002,1975.8,1975.5,0.49730671]
[1772423515603,0.002,1975.9,1975.5,0.49730671]
[1772423516403,0.002,1975.7,1975.5,0.49730671]
[1772423517362,0.002,1975.7,1975.5,1.76279721]
[1772423518097,0.002,1975.7,1975.6,0.49730671]
[1772423520889,0.002,1975.7,1975.4,0.49730671]
[1772423521096,0.002,1975.7,1975.3,4.22217251]
[1772423521097,0.86539387,1975.7,1975.3,4.22217251]
[1772423521391,0.86539387,1975.7,1975.3,5.48779793]
[1772423521599,0.45529107,1975.7,1975.3,5.48779793]
[1772423521760,0.002,1975.7,1975.4,0.49730671]
[1772423521967,0.002,1975.8,1975.7,0.49730671]
[1772423522368,0.002,1976.1,1975.9,0.49730671]
[1772423522695,0.002,1976.2,1976.1,1.76242487]
[1772423523020,0.002,1976.3,1976.1,1.26511816]
[1772423523298,0.00153886,1977.0,1976.6,0.49730671]
[1772423523481,0.00553886,1977.0,1976.6,0.49730671]
[1772423524503,5.05723564,1978.0,1977.2,0.49730671]
[1772423524688,0.45329107,1977.8,1976.9,0.49730671]
[1772423525989,0.004,1977.7,1976.9,0.49730671]
[1772423526297,5.05723564,1978.0,1976.9,0.49730671]
[1772423526298,0.004,1977.9,1976.9,0.49730671]
[1772423526500,0.002,1977.8,1977.1,0.49730671]
[1772423528571,7.61323564,1978.0,1977.3,0.49730671]
[1772423528572,0.00153886,1978.0,1977.3,0.49730671]
[1772423528777,0.002,1977.8,1977.3,0.49730671]
[1772423530599,0.002,1977.8,1977.5,0.49730671]
[1772423531582,0.45329107,1977.7,1977.0,0.49730671]
[1772423532009,0.002,1977.8,1977.0,0.49730671]
[1772423532800,1.71932181,1977.8,1977.1,0.49730671]
[1772423534590,1.71932181,1977.8,1976.7,1.73714715]
[1772423534591,1.74020321,1977.4,1976.7,1.73714715]
[1772423534894,1.26413145,1977.7,1976.8,0.47244381]
[1772423536603,3.02691678,1977.8,1976.8,0.47244381]
[1772423536803,3.02691678,1977.8,1977.0,0.47244381]
[1772423536804,0.002,1977.8,1977.0,0.47244381]
[1772423537012,0.002,1977.8,1977.3,0.45276539]
[1772423537223,1e-08,1978.1,1977.4,0.45276539]
[1772423538212,1e-08,1978.1,1977.6,0.45276539]
[1772423538913,1e-08,1978.1,1977.8,0.45276539]
[1772423539294,1.26336027,1978.9,1977.9,0.45276539]
[1772423539495,1.74276252,1979.0,1978.0,0.45276539]
[1772423540415,0.47791678,1978.9,1978.0,0.45276539]
[1772423540894,1.74129468,1978.9,1978.2,0.45276539]
[1772423541216,1.26485264,1979.0,1978.2,0.45276539]
[1772423541416,0.00153886,1979.0,1978.2,0.45276539]
[1772423542215,1.26480544,1979.0,1978.2,0.45276539]
[1772423542389,0.00153886,1979.0,1978.2,0.45276539]
[1772423542795,0.00153886,1979.0,1978.3,0.45276539]
[1772423543008,0.00153886,1979.0,1978.5,0.45276539]
[1772423544022,0.48145564,1979.0,1978.4,0.45276539]
[1772423545120,1.26332811,1978.9,1978.4,0.45276539]
[1772423546104,1.26332811,1978.9,1977.9,5.0558313]
[1772423546105,0.47991678,1978.8,1977.8,0.45276539]
[1772423547099,0.47991678,1978.6,1977.8,1.71674369]
[1772423547324,0.47991678,1978.5,1977.6,0.45276539]
[1772423548694,0.47991678,1978.5,1977.5,0.001]
[1772423549006,1.26383903,1978.1,1977.5,0.001]
[1772423549206,0.47991678,1978.0,1977.5,0.001]
[1772423551119,1.26403074,1977.8,1977.4,0.001]
[1772423551430,7.58835614,1978.2,1977.4,0.001]
[1772423551431,1.26377514,1978.2,1977.4,0.45376539]
[1772423552432,1.74269192,1978.2,1977.4,0.45376539]
[1772423554227,1.74269192,1978.2,1977.4,1.71803677]
[1772423554423,1.74269192,1978.2,1977.5,0.45376539]
[1772423554628,0.48091678,1978.1,1977.5,0.45376539]
[1772423554825,0.48091678,1978.1,1977.5,0.001]
[1772423555227,3.01091678,1978.1,1977.5,0.001]
[1772423555633,0.47891678,1978.0,1977.5,0.001]
[1772423556169,0.47891678,1978.0,1977.4,0.001]
[1772423556530,1.74188361,1977.9,1977.4,0.001]
[1772423558354,0.47791678,1977.8,1977.4,0.001]
[1772423558551,1.26409465,1977.7,1977.4,0.001]
[1772423560521,1.26390293,1978.0,1977.5,0.45276539]
[1772423564324,1.74181971,1978.0,1977.4,0.001]
[1772423564529,1.26390293,1978.0,1977.4,0.45376539]
[1772423564728,1.26390293,1978.0,1977.5,0.45276539]
[1772423565259,3.79590293,1978.0,1977.5,0.45276539]
[1772423565626,0.47791678,1977.9,1977.4,0.001]
[1772423565828,3.0539026,1977.8,1977.2,0.001]
[1772423566041,0.47791678,1977.7,1977.0,0.45430425]
[1772423566653,0.47791678,1977.7,1977.1,0.45276539]
[1772423566825,3.0539026,1977.8,1977.1,0.45276539]
[1772423567030,1.26409465,1977.7,1977.5,0.001]
[1772423568562,3.79809465,1977.7,1977.5,0.001]
[1772423575466,2.534,1977.7,1977.5,0.001]
[1772423576249,3.79809991,1977.7,1977.5,0.001]
[1772423576568,1.26409991,1977.7,1977.5,0.001]
[1772423576767,3.80309991,1977.7,1977.5,0.001]
[1772423578976,3.80409991,1977.7,1977.5,0.001]
[1772423580069,0.002,1977.6,1977.5,0.001]
[1772423581467,0.002,1977.6,1977.2,0.46530864]
[1772423581769,0.4545589,1977.6,1976.9,1.72991436]
[1772423581968,0.4545589,1977.6,1976.9,0.46530864]
[1772423582175,0.4545589,1977.6,1977.0,0.4678475]
[1772423582466,1.2642225,1977.5,1977.0,0.4678475]
[1772423582673,2.541,1977.4,1977.0,0.4678475]
[1772423587777,1.26435037,1977.3,1977.0,0.4678475]
[1772423587977,0.4525589,1977.2,1976.6,0.46530864]
[1772423588562,0.4525589,1977.0,1976.4,0.46530864]
[1772423588779,2.9935589,1976.9,1976.4,0.46530864]
[1772423589378,0.4525589,1976.8,1976.2,0.46530864]
[1772423589680,1.26479813,1976.6,1976.2,0.46530864]
[1772423589974,1.26479813,1976.6,1976.0,1.73302884]
[1772423590378,1.71735703,1976.6,1976.0,1.73302884]
[1772423590880,5.05788962,1977.2,1976.0,1.73302884]
[1772423590881,2.04761662,1977.1,1976.1,0.46530864]
[1772423591082,0.819,1977.0,1976.1,0.46530864]
[1772423591462,1.2715589,1977.0,1976.1,0.46530864]
[1772423593269,1.2646062,1976.9,1976.2,1.26505414]
[1772423593468,1.2646062,1976.9,1976.3,0.46530864]
[1772423595967,0.48924159,1976.8,1976.3,0.46530864]
[1772423596188,2.53685821,1976.6,1976.1,0.48993968]
[1772423596391,2.53685821,1976.6,1976.1,1.75505608]
[1772423596684,0.48924159,1976.8,1976.2,0.48893968]
[1772423596981,3.02624159,1976.8,1976.2,0.48893968]
[1772423597284,0.48160203,1976.7,1976.2,0.48893968]
[1772423597691,1.2646062,1976.9,1976.2,0.48893968]
[1772423597870,0.48160203,1976.8,1976.2,0.48893968]
[1772423598563,0.48160203,1976.6,1976.1,1.75424205]
[1772423598758,0.48160203,1976.6,1976.1,0.48917094]
[1772423598983,0.48160203,1976.6,1976.1,1.75427842]
[1772423599584,0.48160203,1976.6,1976.1,0.48917094]
[1772423599768,4.2821441,1977.1,1976.2,0.48817094]
[1772423600656,4.2821441,1977.1,1976.4,0.48817094]
[1772423601066,2.04761662,1976.9,1976.2,1.75320585]
[1772423601290,0.48160203,1976.8,1976.3,0.48817094]
[1772423601867,0.48160203,1976.8,1976.1,1.75424041]
[1772423602200,0.48160203,1976.8,1976.1,0.48917094]
[1772423602368,0.48160203,1976.6,1976.1,1.26610911]
[1772423602569,1.26468912,1976.8,1976.3,1.26499013]
[1772423602866,1.26468912,1976.8,1976.3,1.75316107]
[1772423603066,1.74629115,1976.8,1976.3,1.75316107]
[1772423604272,2.534,1976.9,1976.4,0.48817094]
[1772423604467,3.01560203,1976.9,1976.4,0.48817094]
[1772423604682,1.26467017,1976.8,1976.2,0.48817094]
[1772423604885,1.7462722,1976.8,1976.2,0.48817094]
[1772423605299,0.48160203,1976.7,1976.2,0.48817094]
[1772423605803,0.48160203,1976.7,1976.3,0.48917094]
[1772423607496,0.48160203,1976.7,1976.3,1.75411723]
[1772423608789,1.74634768,1976.7,1976.3,1.75415378]
[1772423609188,0.48160203,1976.7,1976.3,1.75415378]
[1772423610200,4.28224012,1976.9,1976.4,0.48817094]
[1772423610504,0.002,1976.9,1976.4,0.48817094]
[1772423611697,2.52921865,1976.8,1976.3,0.48917094]
[1772423611906,0.48160203,1976.7,1976.3,0.48917094]
[1772423612307,0.48160203,1976.7,1976.3,1.75415313]
[1772423612888,0.48160203,1976.7,1976.3,0.48917094]
[1772423613090,0.48160203,1976.7,1976.3,0.001]
[1772423613595,1.74640016,1976.6,1976.3,0.001]
[1772423613789,1.74640016,1976.6,1976.2,0.001]
[1772423614513,0.40993822,1976.4,1976.2,0.001]
[1772423615511,0.89154025,1976.6,1976.2,0.48917094]
[1772423615716,0.40993822,1976.6,1976.2,1.75417704]
[1772423615887,1.67474339,1976.6,1976.2,1.75422375]
[1772423616496,0.002,1977.5,1976.3,0.48817094]
[1772423616696,0.48160203,1979.4,1977.6,0.48817094]
[1772423616897,0.89154025,1979.4,1979.2,5.91268612]
[1772423617107,0.48160203,1979.7,1979.4,0.89154025]
[1772423617397,1.74442745,1979.7,1978.7,0.48817094]
[1772423617699,0.819,1979.8,1979.0,0.48817094]
[1772423617929,0.48314089,1980.0,1979.1,3.09761113]
[1772423618096,0.48160203,1979.9,1979.2,3.09761113]
[1772423618296,0.40993822,1979.5,1979.0,0.48817094]
[1772423618506,0.48160203,1979.9,1979.0,0.48817094]
[1772423619804,0.48160203,1979.9,1979.1,1.26320044]
[1772423621487,0.48160203,1979.8,1978.7,1.75162674]
[1772423621692,0.48160203,1979.7,1978.9,1.75149905]
[1772423622106,2.14470133,1979.9,1979.0,0.48817094]
[1772423622307,2.62630336,1979.9,1979.0,0.48817094]
[1772423622702,0.48160203,1979.8,1979.0,0.48817094]
[1772423623305,0.48160203,1979.4,1978.8,1.26336795]
[1772423623816,3.01580977,1979.7,1978.7,0.48817094]
[1772423624130,0.48160203,1979.6,1978.7,0.48817094]
[1772423625928,0.48160203,1979.6,1978.8,1.75156289]
[1772423627428,1.74448805,1979.6,1978.8,1.75156289]
[1772423627623,0.49835365,1979.5,1978.8,1.75156289]
[1772423629718,0.49835365,1979.8,1978.9,0.49663224]
[1772423630828,0.49835365,1979.8,1979.1,0.49663224]
[1772423632117,1.76111312,1979.8,1979.1,0.49663224]
[1772423632333,0.49835365,1979.7,1979.0,1.26326427]
[1772423632838,0.49835365,1979.8,1979.1,0.49663224]
[1772423633817,0.49835365,1979.8,1979.2,1.26313662]